[Event "EYCC Open-U18 2019"]
[Site "Bratislava"]
[Date "2019.08.02"]
[Round "1.8"]
[White "Riha, Vojtech"]
[Black "Vrolijk, Liam"]
[Result "0-1"]
[ECO "B20"]
[WhiteElo "2197"]
[BlackElo "2478"]
[Annotator "ChessBase"]
[PlyCount "66"]
[EventDate "2019.08.02"]
[EventType "swiss"]
[EventCountry "SVK"]
[SourceTitle "playchess.com"]
[Source "ChessBase"]
[SourceQuality "1"]
[TimeControl "40/5400+30:1800+30"]

1. e4 {[%emt 0:00:00]} c5 {[%emt 0:00:00]} 2. b4 {[%emt 0:00:10]} cxb4 {[%emt 0:00:52]} 3. a3 {[%emt 0:00:19]} d5 {[%emt 0:01:05]} 4. exd5 {[%emt 0:00:18]} Qxd5 {[%emt 0:00:18]} 5. Nf3 {[%emt 0:01:06]} e6 {[%emt 0:01:35]} 6. Bb2 {[%emt 0:03:24]} Nf6 {[%emt 0:04:15]} 7. axb4 {[%emt 0:07:05]} Bxb4 {[%emt 0:04:51]} 8. c4 {[%emt 0:04:45]} Qd7 {[%emt 0:06:31]} 9. Be2 {[%emt 0:13:18]} O-O {[%emt 0:05:01]} 10. O-O {[%emt 0:03:38]} b6 {[%emt 0:05:20]} 11. Ne5 {[%emt 0:09:04]} Qc7 {[%emt 0:03:56]} 12. Na3 {[%emt 0:10:13]} Bb7 {[%emt 0:06:18]} 13. Qb3 {[%emt 0:07:19]} Bxa3 {[%emt 0:04:56]} 14. Rxa3 {[%emt 0:04:45]} Nbd7 {[%emt 0:02:54]} 15. Qe3 {[%emt 0:07:04]} Rfd8 {[%emt 0:04:26]} 16. Qf4 {[%emt 0:08:35]} Nxe5 {[%emt 0:08:53]} 17. Bxe5 {[%emt 0:00:44]} Qe7 {[%emt 0:00:07]} 18. Rfa1 {[%emt 0:04:36]} Bc6 {[%emt 0:02:12]} 19. Qg5 {[%emt 0:05:56]} h6 {[%emt 0:08:39]} 20. Qh4 {[%emt 0:03:19]} Rxd2 {[%emt 0:04:05]} 21. Rg3 {[%emt 0:01:10]} Kf8 {[%emt 0:01:18]} 22. Bf3 {[%emt 0:03:02]} Bxf3 {[%emt 0:01:28]} 23. Rxf3 {[%emt 0:00:04]} Ne8 {[%emt 0:03:25]} 24. Bxg7+ {[%emt 0:01:25]} Nxg7 {[%emt 0:00:39]} 25. Qxh6 {[%emt 0:00:13]} Qd6 {[%emt 0:02:36]} 26. h4 {[%emt 0:00:47]} Qd4 {[%emt 0:02:07]} 27. Re1 {[%emt 0:00:38]} Kg8 {[%emt 0:02:20]} 28. Qg5 {[%emt 0:00:29]} Rc8 {[%emt 0:04:20]} 29. h5 {[%emt 0:00:29]} Rd1 {[%emt 0:02:20]} 30. Rxd1 {[%emt 0:00:30]} Qxd1+ {[%emt 0:00:06]} 31. Kh2 {[%emt 0:00:09]} Rc5 {[%emt 0:00:18]} 32. Qe7 {[%emt 0:00:52]} Rxh5+ {[%emt 0:00:20]} 33. Kg3 {[%emt 0:00:24]} Nf5+ {[%emt 0:00:08]} 0-1

[Event "EYCC Open-U18 2019"]
[Site "Bratislava"]
[Date "2019.08.02"]
[Round "1.9"]
[White "Pechac, Jergus"]
[Black "Mirri, Pietro"]
[Result "1-0"]
[ECO "D11"]
[WhiteElo "2469"]
[BlackElo "2194"]
[Annotator "ChessBase"]
[PlyCount "117"]
[EventDate "2019.08.02"]
[EventType "swiss"]
[EventCountry "SVK"]
[SourceTitle "playchess.com"]
[Source "ChessBase"]
[SourceQuality "1"]
[TimeControl "40/5400+30:1800+30"]

1. d4 {[%emt 0:00:00]} d5 {[%emt 0:00:00]} 2. c4 {[%emt 0:00:00]} c6 {[%emt 0:00:00]} 3. Nf3 {[%emt 0:00:00]} Nf6 {[%emt 0:00:00]} 4. e3 {[%emt 0:00:00]} e6 {[%emt 0:00:00]} 5. Bd3 {[%emt 0:00:00]} Nbd7 {[%emt 0:00:05]} 6. O-O {[%emt 0:00:06]} dxc4 {[%emt 0:00:27]} 7. Bxc4 {[%emt 0:00:08]} b5 {[%emt 0:00:15]} 8. Bd3 {[%emt 0:01:41]} a6 {[%emt 0:00:20]} 9. a4 {[%emt 0:01:28]} Bb7 {[%emt 0:01:23]} 10. e4 {[%emt 0:01:17]} b4 {[%emt 0:04:18]} 11. Nbd2 {[%emt 0:06:10]} c5 {[%emt 0:08:16]} 12. e5 {[%emt 0:29:53]} Nd5 {[%emt 0:00:42]} 13. Ne4 {[%emt 0:00:41]} cxd4 {[%emt 0:07:21]} 14. Bb1 {[%emt 0:00:21]} Qb6 {[%emt 0:02:10]} 15. a5 {[%emt 0:02:23]} Qa7 {[%emt 0:03:00]} 16. Kh1 {[%emt 0:01:36]} h6 {[%emt 0:09:35]} 17. Nxd4 {[%emt 0:00:41]} Nxe5 {[%emt 0:06:13]} 18. Be3 {[%emt 0:12:31]} Qb8 {[%emt 0:17:31]} 19. Qa4+ {[%emt 0:08:40]} Nd7 {[%emt 0:01:54]} 20. Nb3 {[%emt 0:00:05]} Nxe3 {[%emt 0:02:32]} 21. fxe3 {[%emt 0:00:06]} Qc7 {[%emt 0:03:24]} 22. Rc1 {[%emt 0:02:08]} Qe5 {[%emt 0:01:55]} 23. Nec5 {[%emt 0:01:22]} Bxc5 {[%emt 0:03:50]} 24. Nxc5 {[%emt 0:00:06]} Bc8 {[%emt 0:04:16]} 25. Be4 {[%emt 0:01:51]} O-O {[%emt 0:06:49]} 26. Bxa8 {[%emt 0:00:29]} Nxc5 {[%emt 0:00:19]} 27. Qc2 {[%emt 0:00:17]} Nd7 {[%emt 0:00:50]} 28. Qd2 {[%emt 0:03:08]} Nc5 {[%emt 0:03:07]} 29. Qc2 {[%emt 0:02:33]} Nd7 {[%emt 0:00:05]} 30. Ra4 {[%emt 0:00:27]} Nf6 {[%emt 0:03:55]} 31. Rxb4 {[%emt 0:00:29]} Bd7 {[%emt 0:00:14]} 32. Bb7 {[%emt 0:03:05]} Qxa5 {[%emt 0:01:32]} 33. Rc4 {[%emt 0:02:19]} Qb6 {[%emt 0:02:27]} 34. Bc6 {[%emt 0:04:14]} Qxe3 {[%emt 0:01:26]} 35. Qc3 {[%emt 0:02:20]} Qa7 {[%emt 0:01:51]} 36. Bxd7 {[%emt 0:00:11]} Qxd7 {[%emt 0:00:05]} 37. Rc8 {[%emt 0:00:05]} Nd5 {[%emt 0:00:33]} 38. Rxf8+ {[%emt 0:01:06]} Kxf8 {[%emt 0:00:01]} 39. Qa3+ {[%emt 0:00:12]} Kg8 {[%emt 0:00:52]} 40. Qxa6 {[%emt 0:00:00]} Qe7 {[%emt 0:00:00]} 41. Qc4 {[%emt 0:01:45]} Qg5 {[%emt 0:05:35]} 42. Rb1 {[%emt 0:03:29]} Qf5 {[%emt 0:03:29]} 43. Rf1 {[%emt 0:00:24]} Qe5 {[%emt 0:02:13]} 44. b4 {[%emt 0:02:10]} Ne3 {[%emt 0:07:35]} 45. Qf4 {[%emt 0:00:26]} Qc3 {[%emt 0:02:25]} 46. Qxf7+ {[%emt 0:00:28]} Kh7 {[%emt 0:01:21]} 47. Qf3 {[%emt 0:00:07]} Qc4 {[%emt 0:04:19]} 48. Re1 {[%emt 0:00:32]} Ng4 {[%emt 0:01:54]} 49. b5 {[%emt 0:02:09]} Qb4 {[%emt 0:02:42]} 50. Rd1 {[%emt 0:01:59]} h5 {[%emt 0:03:30]} 51. h3 {[%emt 0:00:25]} Nf6 {[%emt 0:00:09]} 52. Qd3+ {[%emt 0:00:06]} Kg8 {[%emt 0:03:33]} 53. Rb1 {[%emt 0:01:01]} Qf4 {[%emt 0:00:28]} 54. Qf3 {[%emt 0:00:08]} Qc4 {[%emt 0:02:06]} 55. b6 {[%emt 0:00:08]} Qc2 {[%emt 0:00:19]} 56. Qb3 {[%emt 0:00:11]} Qc8 {[%emt 0:00:55]} 57. b7 {[%emt 0:00:05]} Qb8 {[%emt 0:00:01]} 58. Qxe6+ {[%emt 0:00:09]} Kh7 {[%emt 0:00:34]} 59. Qc8 {[%emt 0:00:06]} 1-0

[Event "EYCC Open-U18 2019"]
[Site "Bratislava"]
[Date "2019.08.02"]
[Round "1.10"]
[White "Ghersinich, Enrico"]
[Black "Blohberger, Felix"]
[Result "1-0"]
[ECO "E31"]
[WhiteElo "2221"]
[BlackElo "2476"]
[Annotator "ChessBase"]
[PlyCount "89"]
[EventDate "2019.08.02"]
[EventType "swiss"]
[EventCountry "SVK"]
[SourceTitle "playchess.com"]
[Source "ChessBase"]
[SourceQuality "1"]
[TimeControl "40/5400+30:1800+30"]

1. d4 {[%emt 0:00:00]} Nf6 {[%emt 0:00:00]} 2. c4 {[%emt 0:00:23]} e6 {[%emt 0:00:00]} 3. Nc3 {[%emt 0:00:23]} Bb4 {[%emt 0:00:00]} 4. Bg5 {[%emt 0:01:16]} h6 {[%emt 0:01:34]} 5. Bh4 {[%emt 0:00:23]} c5 {[%emt 0:01:37]} 6. d5 {[%emt 0:00:50]} d6 {[%emt 0:03:55]} 7. e3 {[%emt 0:00:48]} Bxc3+ {[%emt 0:01:49]} 8. bxc3 {[%emt 0:00:21]} e5 {[%emt 0:00:19]} 9. Bd3 {[%emt 0:01:43]} e4 {[%emt 0:04:40]} 10. Bc2 {[%emt 0:00:18]} g5 {[%emt 0:03:10]} 11. Bg3 {[%emt 0:02:08]} Qe7 {[%emt 0:05:14]} 12. h4 {[%emt 0:06:31]} g4 {[%emt 0:02:50]} 13. Ne2 {[%emt 0:06:23]} Nbd7 {[%emt 0:17:59]} 14. Qb1 {[%emt 0:01:56]} Ne5 {[%emt 0:11:49]} 15. Bf4 {[%emt 0:19:16]} Kd8 {[%emt 0:08:30]} 16. Bxe4 {[%emt 0:10:18]} Nxc4 {[%emt 0:02:26]} 17. Bd3 {[%emt 0:01:25]} Ne5 {[%emt 0:01:05]} 18. c4 {[%emt 0:09:25]} Nh5 {[%emt 0:05:32]} 19. Bxe5 {[%emt 0:06:29]} Qxe5 {[%emt 0:01:32]} 20. Kd2 {[%emt 0:01:12]} Re8 {[%emt 0:04:06]} 21. g3 {[%emt 0:00:16]} Kc7 {[%emt 0:02:30]} 22. a4 {[%emt 0:06:48]} Bd7 {[%emt 0:04:39]} 23. a5 {[%emt 0:00:41]} Reb8 {[%emt 0:01:23]} 24. Nc3 {[%emt 0:02:18]} Kd8 {[%emt 0:04:08]} 25. Qc2 {[%emt 0:03:57]} Nf6 {[%emt 0:04:57]} 26. Rhb1 {[%emt 0:00:35]} Ke7 {[%emt 0:00:48]} 27. Rb2 {[%emt 0:00:49]} Kf8 {[%emt 0:04:52]} 28. Rab1 {[%emt 0:00:16]} Bc8 {[%emt 0:00:06]} 29. Nb5 {[%emt 0:00:55]} Ne8 {[%emt 0:00:59]} 30. Be2 {[%emt 0:02:14]} Kg7 {[%emt 0:00:28]} 31. Bd3 {[%emt 0:03:38]} Bd7 {[%emt 0:00:50]} 32. Nc3 {[%emt 0:00:11]} Bc8 {[%emt 0:00:06]} 33. Qd1 {[%emt 0:00:31]} Nc7 {[%emt 0:01:24]} 34. f4 {[%emt 0:01:35]} gxf3 {[%emt 0:00:43]} 35. Qxf3 {[%emt 0:00:05]} Ne8 {[%emt 0:00:30]} 36. g4 {[%emt 0:02:03]} Qh2+ {[%emt 0:00:45]} 37. Be2 {[%emt 0:01:15]} Qxh4 {[%emt 0:00:20]} 38. Ne4 {[%emt 0:00:22]} Qe7 {[%emt 0:00:48]} 39. Rf1 {[%emt 0:02:46]} b6 {[%emt 0:00:22]} 40. Qf4 {[%emt 0:00:00]} bxa5 {[%emt 0:00:00]} 41. Rxb8 {[%emt 0:01:49]} Rxb8 {[%emt 0:01:27]} 42. Rh1 {[%emt 0:00:08]} Qe5 {[%emt 0:21:33]} 43. Qxh6+ {[%emt 0:00:21]} Kg8 {[%emt 0:00:04]} 44. Rh5 {[%emt 0:00:18]} Rb2+ {[%emt 0:00:32]} 45. Kc1 {[%emt 0:00:28]} 1-0

[Event "EYCC Open-U18 2019"]
[Site "Bratislava"]
[Date "2019.08.02"]
[Round "1.11"]
[White "Erenberg, Ariel"]
[Black "Veleshnja, Zino"]
[Result "1-0"]
[ECO "E65"]
[WhiteElo "2442"]
[BlackElo "2131"]
[Annotator "NA"]
[PlyCount "93"]
[EventDate "2019.08.02"]
[EventType "swiss"]
[EventCountry "SVK"]
[SourceTitle "playchess.com"]
[Source "ChessBase"]
[SourceQuality "1"]
[TimeControl "40/5400+30:1800+30"]

1. d4 {[%emt 0:00:00]} Nf6 {[%emt 0:00:00]} 2. c4 {[%emt 0:00:00]} g6 {[%emt 0:00:00]} 3. g3 {[%emt 0:00:00]} Bg7 {[%emt 0:00:00]} 4. Bg2 {[%emt 0:00:02]} d6 {[%emt 0:00:17]} 5. Nc3 {[%emt 0:01:52]} O-O {[%emt 0:00:14]} 6. Nf3 {[%emt 0:00:08]} c5 {[%emt 0:00:44]} 7. O-O {[%emt 0:08:04]} Nc6 {[%emt 0:00:05]} 8. dxc5 {[%emt 0:12:24]} dxc5 {[%emt 0:00:05]} 9. Bf4 {[%emt 0:00:42]} Be6 {[%emt 0:00:23]} 10. Qa4 {[%emt 0:10:26]} Nh5 {[%emt 0:00:25]} 11. Be3 {[%emt 0:04:07]} Nd4 {[%emt 0:00:40]} 12. Ng5 {[%emt 0:14:34]} Bd7 {[%emt 0:00:18]} 13. Qd1 {[%emt 0:00:53]} e6 {[%emt 0:01:32]} 14. Nge4 {[%emt 0:12:05]} Qc7 {[%emt 0:10:49]} 15. Bd2 {[%emt 0:04:11]} f5 {[%emt 0:05:35]} 16. Ng5 {[%emt 0:01:19]} h6 {[%emt 0:06:50]} 17. Nh3 {[%emt 0:00:53]} Bc6 {[%emt 0:02:17]} 18. f3 {[%emt 0:02:09]} Rad8 {[%emt 0:11:32]} 19. Rc1 {[%emt 0:19:29]} g5 {[%emt 0:12:42]} 20. Qe1 {[%emt 0:00:49]} e5 {[%emt 0:06:50]} 21. Nd5 {[%emt 0:01:28]} Bxd5 {[%emt 0:02:03]} 22. cxd5 {[%emt 0:00:01]} f4 {[%emt 0:02:53]} 23. e3 {[%emt 0:00:54]} fxe3 {[%emt 0:02:48]} 24. Bxe3 {[%emt 0:00:02]} Qd6 {[%emt 0:03:08]} 25. Kh1 {[%emt 0:01:37]} Nf6 {[%emt 0:02:11]} 26. Nf2 {[%emt 0:01:07]} Qxd5 {[%emt 0:05:02]} 27. f4 {[%emt 0:00:09]} e4 {[%emt 0:00:27]} 28. fxg5 {[%emt 0:01:06]} hxg5 {[%emt 0:00:05]} 29. b4 {[%emt 0:00:36]} c4 {[%emt 0:03:25]} 30. Rd1 {[%emt 0:00:35]} Qe5 {[%emt 0:01:54]} 31. Qc3 {[%emt 0:00:14]} Nf3 {[%emt 0:05:16]} 32. Qxc4+ {[%emt 0:00:19]} Kh8 {[%emt 0:00:19]} 33. Rxd8 {[%emt 0:01:52]} Rxd8 {[%emt 0:00:02]} 34. Nxe4 {[%emt 0:01:36]} Nxe4 {[%emt 0:00:30]} 35. Rxf3 {[%emt 0:01:02]} Rd1+ {[%emt 0:01:01]} 36. Bg1 {[%emt 0:00:38]} g4 {[%emt 0:07:02]} 37. Rf1 {[%emt 0:00:21]} Rxf1 {[%emt 0:04:48]} 38. Qxf1 {[%emt 0:00:05]} b6 {[%emt 0:03:34]} 39. Qc4 {[%emt 0:00:55]} Nf6 {[%emt 0:00:46]} 40. Qc8+ {[%emt 0:00:00]} Kh7 {[%emt 0:00:00]} 41. Qb7 {[%emt 0:01:10]} Qb2 {[%emt 0:03:23]} 42. Qxa7 {[%emt 0:04:13]} Qxb4 {[%emt 0:01:05]} 43. Qxb6 {[%emt 0:00:55]} Qa3 {[%emt 0:01:22]} 44. Qa7 {[%emt 0:01:37]} Qd3 {[%emt 0:03:01]} 45. a4 {[%emt 0:01:53]} Ne4 {[%emt 0:00:36]} 46. Qe3 {[%emt 0:02:18]} Qxe3 {[%emt 0:01:03]} 47. Bxe3 {[%emt 0:00:02]} 1-0

[Event "EYCC Open-U18 2019"]
[Site "Bratislava"]
[Date "2019.08.02"]
[Round "1.12"]
[White "Brinovec, David"]
[Black "Petriashvili, Nikoloz"]
[Result "1-0"]
[ECO "B14"]
[WhiteElo "2205"]
[BlackElo "2451"]
[Annotator "ChessBase"]
[PlyCount "107"]
[EventDate "2019.08.02"]
[EventType "swiss"]
[EventCountry "SVK"]
[SourceTitle "playchess.com"]
[Source "ChessBase"]
[SourceQuality "1"]
[TimeControl "40/5400+30:1800+30"]

1. e4 {[%emt 0:00:00]} c6 {[%emt 0:00:19]} 2. d4 {[%emt 0:00:00]} d5 {[%emt 0:04:43]} 3. exd5 {[%emt 0:00:00]} cxd5 {[%emt 0:00:05]} 4. c4 {[%emt 0:00:14]} Nf6 {[%emt 0:01:04]} 5. Nc3 {[%emt 0:00:11]} g6 {[%emt 0:00:05]} 6. cxd5 {[%emt 0:04:15]} Bg7 {[%emt 0:00:04]} 7. Bb5+ {[%emt 0:05:56]} Nbd7 {[%emt 0:00:09]} 8. d6 {[%emt 0:00:54]} exd6 {[%emt 0:00:01]} 9. Qe2+ {[%emt 0:00:48]} Qe7 {[%emt 0:00:05]} 10. Bf4 {[%emt 0:01:04]} Qxe2+ {[%emt 0:19:59]} 11. Bxe2 {[%emt 0:06:46]} Ke7 {[%emt 0:03:10]} 12. Nb5 {[%emt 0:11:21]} Ne8 {[%emt 0:00:15]} 13. O-O-O {[%emt 0:00:45]} Nb6 {[%emt 0:07:09]} 14. Bf3 {[%emt 0:08:30]} d5 {[%emt 0:03:53]} 15. Ne2 {[%emt 0:05:49]} Be6 {[%emt 0:00:08]} 16. Rhe1 {[%emt 0:02:54]} Rc8+ {[%emt 0:02:07]} 17. Nbc3 {[%emt 0:01:05]} Nd6 {[%emt 0:02:13]} 18. Kb1 {[%emt 0:04:03]} a6 {[%emt 0:04:54]} 19. Be5 {[%emt 0:04:46]} f6 {[%emt 0:22:40]} 20. Bg3 {[%emt 0:00:36]} f5 {[%emt 0:14:53]} 21. Nf4 {[%emt 0:08:33]} Ne4 {[%emt 0:00:01]} 22. Nxe4 {[%emt 0:00:19]} dxe4 {[%emt 0:00:05]} 23. Bxe4 {[%emt 0:00:09]} Bxa2+ {[%emt 0:00:30]} 24. Kxa2 {[%emt 0:00:05]} fxe4 {[%emt 0:00:02]} 25. Rxe4+ {[%emt 0:00:40]} Kf7 {[%emt 0:00:02]} 26. Rde1 {[%emt 0:00:41]} Bf6 {[%emt 0:01:29]} 27. Nd3 {[%emt 0:04:43]} Rhd8 {[%emt 0:00:32]} 28. Be5 {[%emt 0:02:59]} Bxe5 {[%emt 0:01:16]} 29. Nxe5+ {[%emt 0:00:02]} Kg7 {[%emt 0:00:05]} 30. Nd3 {[%emt 0:01:54]} Nd5 {[%emt 0:05:44]} 31. Nc5 {[%emt 0:02:01]} Rd6 {[%emt 0:01:10]} 32. Nxb7 {[%emt 0:03:27]} Rb6 {[%emt 0:00:01]} 33. Nc5 {[%emt 0:00:12]} Rcb8 {[%emt 0:00:02]} 34. R4e2 {[%emt 0:04:46]} Rb5 {[%emt 0:01:04]} 35. Rc1 {[%emt 0:01:35]} Nf4 {[%emt 0:01:40]} 36. Rd2 {[%emt 0:00:39]} Nxg2 {[%emt 0:00:05]} 37. d5 {[%emt 0:00:37]} Nh4 {[%emt 0:01:57]} 38. Rc3 {[%emt 0:04:12]} Nf5 {[%emt 0:02:22]} 39. Ne4 {[%emt 0:04:35]} R5b7 {[%emt 0:02:38]} 40. d6 {[%emt 0:00:00]} Rd7 {[%emt 0:00:00]} 41. Rc7 {[%emt 0:02:20]} Rbd8 {[%emt 0:05:36]} 42. Nc5 {[%emt 0:00:20]} Rxc7 {[%emt 0:00:52]} 43. dxc7 {[%emt 0:00:06]} Rc8 {[%emt 0:00:19]} 44. Rd8 {[%emt 0:04:18]} Ne7 {[%emt 0:00:01]} 45. Rxc8 {[%emt 0:00:10]} Nxc8 {[%emt 0:00:03]} 46. Nxa6 {[%emt 0:01:41]} Kf6 {[%emt 0:00:05]} 47. b4 {[%emt 0:00:26]} Ke7 {[%emt 0:00:28]} 48. Kb3 {[%emt 0:00:13]} Nb6 {[%emt 0:00:27]} 49. b5 {[%emt 0:00:17]} Kd7 {[%emt 0:00:05]} 50. Kb4 {[%emt 0:00:58]} Kc8 {[%emt 0:00:02]} 51. Kc5 {[%emt 0:00:15]} Nd7+ {[%emt 0:01:14]} 52. Kd6 {[%emt 0:00:23]} Nb6 {[%emt 0:00:11]} 53. Kc6 {[%emt 0:00:27]} Nc4 {[%emt 0:00:09]} 54. b6 {[%emt 0:00:17]} 1-0

[Event "EYCC Open-U18 2019"]
[Site "Bratislava"]
[Date "2019.08.02"]
[Round "1.13"]
[White "Salemgareev, Tagir"]
[Black "Brozyna, Mateusz"]
[Result "1-0"]
[ECO "D11"]
[WhiteElo "2412"]
[BlackElo "2258"]
[Annotator "NA"]
[PlyCount "59"]
[EventDate "2019.08.02"]
[EventType "swiss"]
[EventCountry "SVK"]
[SourceTitle "playchess.com"]
[Source "ChessBase"]
[SourceQuality "1"]
[TimeControl "40/5400+30:1800+30"]

1. d4 {[%emt 0:00:00]} d5 {[%emt 0:00:00]} 2. c4 {[%emt 0:00:00]} c6 {[%emt 0:00:00]} 3. Nf3 {[%emt 0:00:00]} Nf6 {[%emt 0:00:00]} 4. e3 {[%emt 0:00:00]} e6 {[%emt 0:00:06]} 5. Bd3 {[%emt 0:01:02]} Nbd7 {[%emt 0:00:16]} 6. O-O {[%emt 0:00:39]} Bd6 {[%emt 0:06:32]} 7. Nc3 {[%emt 0:01:13]} dxc4 {[%emt 0:01:00]} 8. Bxc4 {[%emt 0:00:04]} b5 {[%emt 0:00:08]} 9. Bd3 {[%emt 0:00:05]} O-O {[%emt 0:00:33]} 10. e4 {[%emt 0:00:30]} e5 {[%emt 0:03:37]} 11. Ne2 {[%emt 0:00:05]} Bb7 {[%emt 0:08:27]} 12. Bg5 {[%emt 0:01:02]} h6 {[%emt 0:00:57]} 13. Bh4 {[%emt 0:00:26]} Re8 {[%emt 0:06:33]} 14. dxe5 {[%emt 0:11:43]} Bxe5 {[%emt 0:01:20]} 15. Qc2 {[%emt 0:14:59]} Qe7 {[%emt 0:13:32]} 16. Ned4 {[%emt 0:16:08]} Bxd4 {[%emt 0:05:03]} 17. Nxd4 {[%emt 0:00:05]} Qc5 {[%emt 0:00:18]} 18. Nf5 {[%emt 0:04:54]} Qxc2 {[%emt 0:02:27]} 19. Bxc2 {[%emt 0:00:39]} Nxe4 {[%emt 0:20:22]} 20. Ne7+ {[%emt 0:03:52]} Rxe7 {[%emt 0:00:21]} 21. Bxe7 {[%emt 0:00:04]} Nef6 {[%emt 0:05:37]} 22. Rad1 {[%emt 0:04:14]} Nd5 {[%emt 0:00:28]} 23. Bb3 {[%emt 0:00:13]} N7b6 {[%emt 0:00:24]} 24. Bc5 {[%emt 0:00:25]} a5 {[%emt 0:05:14]} 25. Bxb6 {[%emt 0:02:32]} Nxb6 {[%emt 0:00:09]} 26. Rfe1 {[%emt 0:00:12]} Kf8 {[%emt 0:02:17]} 27. a3 {[%emt 0:02:28]} b4 {[%emt 0:01:28]} 28. axb4 {[%emt 0:01:23]} axb4 {[%emt 0:00:08]} 29. Rd4 {[%emt 0:00:29]} c5 {[%emt 0:08:15]} 30. Rd6 {[%emt 0:00:18]} 1-0

[Event "EYCC Open-U18 2019"]
[Site "Bratislava"]
[Date "2019.08.02"]
[Round "1.14"]
[White "Marzo Pie, Xavier"]
[Black "Gaifullin, Artur"]
[Result "0-1"]
[ECO "E36"]
[WhiteElo "2202"]
[BlackElo "2453"]
[Annotator "ChessBase"]
[PlyCount "84"]
[EventDate "2019.08.02"]
[EventType "swiss"]
[EventCountry "SVK"]
[SourceTitle "playchess.com"]
[Source "ChessBase"]
[SourceQuality "1"]
[TimeControl "40/5400+30:1800+30"]

1. d4 {[%emt 0:00:00]} Nf6 {[%emt 0:00:00]} 2. c4 {[%emt 0:00:00]} e6 {[%emt 0:00:00]} 3. Nc3 {[%emt 0:00:00]} Bb4 {[%emt 0:00:00]} 4. Qc2 {[%emt 0:00:00]} d5 {[%emt 0:00:00]} 5. a3 {[%emt 0:00:39]} Bxc3+ {[%emt 0:00:00]} 6. Qxc3 {[%emt 0:00:03]} c5 {[%emt 0:00:00]} 7. dxc5 {[%emt 0:04:55]} d4 {[%emt 0:00:04]} 8. Qc2 {[%emt 0:00:15]} e5 {[%emt 0:00:06]} 9. e3 {[%emt 0:05:32]} Nc6 {[%emt 0:00:42]} 10. Nf3 {[%emt 0:06:00]} O-O {[%emt 0:00:10]} 11. b4 {[%emt 0:26:43]} Re8 {[%emt 0:00:11]} 12. e4 {[%emt 0:11:28]} Bg4 {[%emt 0:04:47]} 13. Be2 {[%emt 0:02:22]} a5 {[%emt 0:02:05]} 14. Rb1 {[%emt 0:03:13]} Qc8 {[%emt 0:03:31]} 15. h3 {[%emt 0:05:22]} Bh5 {[%emt 0:02:22]} 16. Nh4 {[%emt 0:03:02]} Bxe2 {[%emt 0:04:30]} 17. Qxe2 {[%emt 0:00:05]} axb4 {[%emt 0:00:32]} 18. axb4 {[%emt 0:01:00]} Ra4 {[%emt 0:00:44]} 19. Bd2 {[%emt 0:04:37]} d3 {[%emt 0:07:32]} 20. Qxd3 {[%emt 0:06:25]} Rd8 {[%emt 0:00:09]} 21. Qc2 {[%emt 0:01:23]} Qa8 {[%emt 0:00:53]} 22. Bc3 {[%emt 0:05:22]} Ra2 {[%emt 0:04:43]} 23. Rb2 {[%emt 0:00:25]} Ra1+ {[%emt 0:00:48]} 24. Rb1 {[%emt 0:00:05]} Qa4 {[%emt 0:00:18]} 25. Qxa4 {[%emt 0:06:29]} Rxb1+ {[%emt 0:00:08]} 26. Ke2 {[%emt 0:00:02]} Rxh1 {[%emt 0:00:12]} 27. f3 {[%emt 0:03:51]} Rc1 {[%emt 0:00:20]} 28. Bb2 {[%emt 0:00:45]} Rxc4 {[%emt 0:00:39]} 29. Nf5 {[%emt 0:00:58]} Nh5 {[%emt 0:04:24]} 30. Nd6 {[%emt 0:00:29]} Nf4+ {[%emt 0:00:16]} 31. Kf1 {[%emt 0:00:51]} b5 {[%emt 0:31:18]} 32. Qb3 {[%emt 0:03:07]} Nxb4 {[%emt 0:01:24]} 33. Nxc4 {[%emt 0:00:18]} bxc4 {[%emt 0:00:03]} 34. Qa4 {[%emt 0:00:42]} Nbd3 {[%emt 0:05:15]} 35. Bc3 {[%emt 0:00:29]} Nxc5 {[%emt 0:02:16]} 36. Qxc4 {[%emt 0:00:18]} Rd1+ {[%emt 0:01:11]} 37. Kf2 {[%emt 0:00:02]} Rc1 {[%emt 0:00:12]} 38. g3 {[%emt 0:00:54]} Nfd3+ {[%emt 0:03:04]} 39. Ke2 {[%emt 0:00:17]} Rc2+ {[%emt 0:00:42]} 40. Kd1 {[%emt 0:00:00]} Nb2+ {[%emt 0:00:00]} 41. Kxc2 {[%emt 0:01:27]} Nxc4 {[%emt 0:00:17]} 42. Bb4 {[%emt 0:00:04]} Ne6 0-1

[Event "EYCC Open-U18 2019"]
[Site "Bratislava"]
[Date "2019.08.02"]
[Round "1.15"]
[White "Murzin, Volodar"]
[Black "Santryan, Davit"]
[Result "1-0"]
[ECO "C79"]
[WhiteElo "2429"]
[BlackElo "2167"]
[Annotator "NA"]
[PlyCount "79"]
[EventDate "2019.08.02"]
[EventType "swiss"]
[EventCountry "SVK"]
[SourceTitle "playchess.com"]
[Source "ChessBase"]
[SourceQuality "1"]
[TimeControl "40/5400+30:1800+30"]

1. e4 {[%emt 0:00:00]} e5 {[%emt 0:00:00]} 2. Nf3 {[%emt 0:00:00]} Nc6 {[%emt 0:00:04]} 3. Bb5 {[%emt 0:00:00]} a6 {[%emt 0:00:35]} 4. Ba4 {[%emt 0:00:00]} Nf6 {[%emt 0:00:17]} 5. O-O {[%emt 0:00:03]} d6 {[%emt 0:00:18]} 6. d3 {[%emt 0:03:41]} g6 {[%emt 0:01:10]} 7. c3 {[%emt 0:04:47]} Bg7 {[%emt 0:00:54]} 8. Nbd2 {[%emt 0:00:35]} O-O {[%emt 0:00:41]} 9. Re1 {[%emt 0:00:22]} Re8 {[%emt 0:02:03]} 10. Nf1 {[%emt 0:00:17]} b5 {[%emt 0:02:03]} 11. Bc2 {[%emt 0:00:14]} Bb7 {[%emt 0:02:49]} 12. Ng3 {[%emt 0:05:51]} d5 {[%emt 0:10:20]} 13. Qe2 {[%emt 0:01:15]} h6 {[%emt 0:03:34]} 14. a4 {[%emt 0:03:57]} Qe7 {[%emt 0:04:44]} 15. h3 {[%emt 0:02:06]} Rad8 {[%emt 0:03:39]} 16. Be3 {[%emt 0:07:02]} b4 {[%emt 0:05:57]} 17. a5 {[%emt 0:01:31]} Nb8 {[%emt 0:13:31]} 18. Rec1 {[%emt 0:04:57]} bxc3 {[%emt 0:10:37]} 19. bxc3 {[%emt 0:00:02]} c5 {[%emt 0:00:48]} 20. Rcb1 {[%emt 0:08:18]} d4 {[%emt 0:14:50]} 21. cxd4 {[%emt 0:10:02]} exd4 {[%emt 0:00:50]} 22. Bc1 {[%emt 0:09:22]} Qc7 {[%emt 0:06:44]} 23. Bf4 {[%emt 0:07:43]} Qxf4 {[%emt 0:02:59]} 24. Rxb7 {[%emt 0:00:08]} Nc6 {[%emt 0:03:14]} 25. Bb3 {[%emt 0:02:46]} Nd7 {[%emt 0:02:37]} 26. Qd1 {[%emt 0:08:22]} Re7 {[%emt 0:04:39]} 27. Nd2 {[%emt 0:01:17]} Nde5 {[%emt 0:01:32]} 28. Rxe7 {[%emt 0:02:22]} Nxe7 {[%emt 0:00:03]} 29. Nc4 {[%emt 0:01:10]} N7c6 {[%emt 0:01:24]} 30. Ne2 {[%emt 0:01:07]} Qf6 {[%emt 0:00:26]} 31. f4 {[%emt 0:02:41]} Nxc4 {[%emt 0:00:09]} 32. Bxc4 {[%emt 0:00:01]} Rb8 {[%emt 0:00:33]} 33. e5 {[%emt 0:01:22]} Qd8 {[%emt 0:00:47]} 34. Qa4 {[%emt 0:03:01]} Qc8 {[%emt 0:00:38]} 35. Ng3 {[%emt 0:00:46]} Rb4 {[%emt 0:00:49]} 36. Qa2 {[%emt 0:01:56]} Qc7 {[%emt 0:00:40]} 37. Ne4 {[%emt 0:00:20]} Nxe5 {[%emt 0:00:44]} 38. fxe5 {[%emt 0:00:18]} Bxe5 {[%emt 0:00:04]} 39. Rf1 {[%emt 0:00:21]} Bf4 {[%emt 0:00:21]} 40. Nf6+ {[%emt 0:00:00]} 1-0